[Event "January 2 Late 2024"]
[Site "https://www.chess.com"]
[Date "2024.01.02"]
[Round "2"]
[White "Ehlvest, Jaan"]
[Black "Rasulov, Vugar"]
[Result "0-1"]
[Board "30"]
[TimeControl "180+1"]
[WhiteFideId "4500016"]
[BlackFideId "13402390"]
[WhiteElo "2620"]
[BlackElo "2978"]
[WhiteTeam "USA"]
[BlackTeam "AZE"]
[WhiteClock "0:00:00"]
[BlackClock "0:00:13"]

1. e4 {[%clk 0:02:56]}  c5 {[%clk 0:02:59]} 2. Nf3 {[%clk 0:02:54]}  e6 {[%clk 0:03:00]} 3. c3 {[%clk 0:02:53]}  d5 {[%clk 0:02:56]} 4. e5 {[%clk 0:02:49]}  d4 {[%clk 0:02:57]} 5. d3 {[%clk 0:02:47]}  Nc6 {[%clk 0:02:55]} 6. g3 {[%clk 0:02:46]}  Nge7 {[%clk 0:02:49]} 7. Bg2 {[%clk 0:02:46]}  Ng6 {[%clk 0:02:50]} 8. Qe2 {[%clk 0:02:42]}  Be7 {[%clk 0:02:50]} 9. Na3 {[%clk 0:02:36]}  O-O {[%clk 0:02:50]} 10. h4 {[%clk 0:02:29]}  f6 {[%clk 0:02:49]} 11. exf6 {[%clk 0:02:25]}  Bxf6 {[%clk 0:02:50]} 12. h5 {[%clk 0:02:11]}  Nge7 {[%clk 0:02:43]} 13. cxd4 {[%clk 0:01:56]}  cxd4 {[%clk 0:02:32]} 14. h6 {[%clk 0:01:52]}  g6 {[%clk 0:02:31]} 15. Nc4 {[%clk 0:01:47]}  Nd5 {[%clk 0:02:21]} 16. O-O {[%clk 0:01:43]}  Qc7 {[%clk 0:01:50]} 17. Re1 {[%clk 0:01:31]}  Bd7 {[%clk 0:01:32]} 18. a3 {[%clk 0:01:25]}  Rae8 {[%clk 0:01:29]} 19. Ng5 {[%clk 0:01:18]}  b5 {[%clk 0:01:24]} 20. Ne4 {[%clk 0:00:34]}  bxc4 {[%clk 0:01:24]} 21. dxc4 {[%clk 0:00:34]}  Nb6 {[%clk 0:01:20]} 22. b4 {[%clk 0:00:31]}  Bh8 {[%clk 0:00:52]} 23. Rb1 {[%clk 0:00:30]}  d3 {[%clk 0:00:48]} 24. Qxd3 {[%clk 0:00:29]}  Ne5 {[%clk 0:00:49]} 25. Qe2 {[%clk 0:00:23]}  Qxc4 {[%clk 0:00:47]} 26. Nc5 {[%clk 0:00:23]}  Qxe2 {[%clk 0:00:37]} 27. Rxe2 {[%clk 0:00:23]}  Bb5 {[%clk 0:00:38]} 28. Re4 {[%clk 0:00:22]}  Bc6 {[%clk 0:00:33]} 29. Re2 {[%clk 0:00:20]}  Nf3+ {[%clk 0:00:30]} 30. Kh1 {[%clk 0:00:18]}  Bd5 {[%clk 0:00:30]} 31. Bb2 {[%clk 0:00:17]}  Bxb2 {[%clk 0:00:28]} 32. Rbxb2 {[%clk 0:00:18]}  Nc4 {[%clk 0:00:28]} 33. Rbc2 {[%clk 0:00:17]}  Nd4 {[%clk 0:00:24]} 34. Bxd5 {[%clk 0:00:17]}  exd5 {[%clk 0:00:25]} 35. Rxe8 {[%clk 0:00:17]}  Rxe8 {[%clk 0:00:26]} 36. Rc1 {[%clk 0:00:17]}  Re2 {[%clk 0:00:20]} 37. Rd1 {[%clk 0:00:16]}  Nf5 {[%clk 0:00:17]} 38. Rxd5 {[%clk 0:00:15]}  Rxf2 {[%clk 0:00:17]} 39. Rd7 {[%clk 0:00:15]}  Nce3 {[%clk 0:00:15]} 40. Ne4 {[%clk 0:00:06]}  Rf1+ {[%clk 0:00:15]} 41. Kh2 {[%clk 0:00:06]}  Nxh6 {[%clk 0:00:13]} 42. Nd6 {[%clk 0:00:00]}  Nhg4+ {[%clk 0:00:13]} 0-1

[Event "January 2 Late 2024"]
[Site "https://www.chess.com"]
[Date "2024.01.02"]
[Round "2"]
[White "Anton Guijarro, David"]
[Black "Poltorak, Sebastian"]
[Result "1-0"]
[Board "31"]
[TimeControl "180+1"]
[WhiteFideId "2285525"]
[BlackFideId "1199498"]
[WhiteElo "2973"]
[BlackElo "2619"]
[WhiteTeam "ESP"]
[BlackTeam "POL"]
[WhiteClock "0:01:32"]
[BlackClock "0:00:18"]

1. Nf3 {[%clk 0:02:59]}  c5 {[%clk 0:02:59]} 2. e3 {[%clk 0:02:58]}  Nc6 {[%clk 0:02:59]} 3. d4 {[%clk 0:02:59]}  cxd4 {[%clk 0:03:00]} 4. exd4 {[%clk 0:02:59]}  d5 {[%clk 0:03:00]} 5. Ne5 {[%clk 0:02:59]}  Bd7 {[%clk 0:02:55]} 6. c3 {[%clk 0:02:57]}  Nxe5 {[%clk 0:02:52]} 7. dxe5 {[%clk 0:02:58]}  e6 {[%clk 0:02:53]} 8. Bd3 {[%clk 0:02:57]}  Bc5 {[%clk 0:02:53]} 9. Qg4 {[%clk 0:02:55]}  Kf8 {[%clk 0:02:51]} 10. O-O {[%clk 0:02:54]}  Ne7 {[%clk 0:02:51]} 11. Nd2 {[%clk 0:02:52]}  Ng6 {[%clk 0:02:48]} 12. Nf3 {[%clk 0:02:50]}  Qb6 {[%clk 0:02:22]} 13. b4 {[%clk 0:02:46]}  Be7 {[%clk 0:02:22]} 14. Be3 {[%clk 0:02:46]}  Qc7 {[%clk 0:02:19]} 15. Bd4 {[%clk 0:02:45]}  a6 {[%clk 0:02:18]} 16. a4 {[%clk 0:02:42]}  a5 {[%clk 0:02:04]} 17. b5 {[%clk 0:02:37]}  b6 {[%clk 0:01:58]} 18. h4 {[%clk 0:02:36]}  Bc5 {[%clk 0:01:51]} 19. h5 {[%clk 0:02:33]}  Ne7 {[%clk 0:01:51]} 20. h6 {[%clk 0:02:33]}  g6 {[%clk 0:01:46]} 21. Rac1 {[%clk 0:02:19]}  Nf5 {[%clk 0:01:44]} 22. Bxf5 {[%clk 0:02:03]}  exf5 {[%clk 0:01:43]} 23. Qf4 {[%clk 0:02:01]}  Be6 {[%clk 0:01:41]} 24. Rfd1 {[%clk 0:01:51]}  Rc8 {[%clk 0:01:39]} 25. c4 {[%clk 0:01:46]}  dxc4 {[%clk 0:01:29]} 26. Bxc5+ {[%clk 0:01:46]}  Qxc5 {[%clk 0:01:30]} 27. Rd6 {[%clk 0:01:47]}  c3 {[%clk 0:01:06]} 28. Qg5 {[%clk 0:01:44]}  Re8 {[%clk 0:00:28]} 29. Qf6 {[%clk 0:01:40]}  Rg8 {[%clk 0:00:28]} 30. Ng5 {[%clk 0:01:40]}  Re7 {[%clk 0:00:18]} 31. Rd8+ {[%clk 0:01:34]}  Re8 {[%clk 0:00:18]} 32. Nxh7# {[%clk 0:01:32]} 1-0

[Event "January 2 Late 2024"]
[Site "https://www.chess.com"]
[Date "2024.01.02"]
[Round "2"]
[White "Kamsky, Gata"]
[Black "Golubev, Mikhail"]
[Result "1-0"]
[Board "35"]
[TimeControl "180+1"]
[WhiteFideId "2000024"]
[BlackFideId "14100983"]
[WhiteElo "2955"]
[BlackElo "2611"]
[WhiteTeam "USA"]
[BlackTeam "UKR"]
[WhiteClock "0:00:16"]
[BlackClock "0:00:00"]

1. e4 {[%clk 0:02:56]}  c5 {[%clk 0:02:58]} 2. Nf3 {[%clk 0:02:56]}  d6 {[%clk 0:02:57]} 3. d4 {[%clk 0:02:56]}  cxd4 {[%clk 0:02:57]} 4. Nxd4 {[%clk 0:02:56]}  Nf6 {[%clk 0:02:57]} 5. Nc3 {[%clk 0:02:57]}  g6 {[%clk 0:02:58]} 6. Be2 {[%clk 0:02:53]}  Bg7 {[%clk 0:02:58]} 7. O-O {[%clk 0:02:54]}  O-O {[%clk 0:02:58]} 8. Be3 {[%clk 0:02:53]}  Nc6 {[%clk 0:02:57]} 9. Qd2 {[%clk 0:02:53]}  Bd7 {[%clk 0:02:54]} 10. Rfd1 {[%clk 0:02:52]}  Rc8 {[%clk 0:02:51]} 11. f3 {[%clk 0:02:52]}  a6 {[%clk 0:02:48]} 12. a4 {[%clk 0:02:51]}  Ne5 {[%clk 0:02:41]} 13. a5 {[%clk 0:02:47]}  Re8 {[%clk 0:02:33]} 14. Kh1 {[%clk 0:02:21]}  Nc4 {[%clk 0:02:30]} 15. Bxc4 {[%clk 0:02:19]}  Rxc4 {[%clk 0:02:31]} 16. Nde2 {[%clk 0:02:19]}  Qc8 {[%clk 0:02:10]} 17. b3 {[%clk 0:02:15]}  Rc6 {[%clk 0:02:07]} 18. Ra2 {[%clk 0:02:12]}  Ng4 {[%clk 0:01:16]} 19. Bd4 {[%clk 0:01:51]}  Bxd4 {[%clk 0:01:15]} 20. Qxd4 {[%clk 0:01:50]}  e5 {[%clk 0:01:14]} 21. Qg1 {[%clk 0:01:44]}  Nf6 {[%clk 0:01:13]} 22. Qe3 {[%clk 0:01:27]}  Be6 {[%clk 0:01:13]} 23. Rd3 {[%clk 0:01:04]}  Kg7 {[%clk 0:01:08]} 24. Qd2 {[%clk 0:01:03]}  Qc7 {[%clk 0:00:41]} 25. Na4 {[%clk 0:00:47]}  d5 {[%clk 0:00:29]} 26. exd5 {[%clk 0:00:45]}  Nxd5 {[%clk 0:00:18]} 27. c4 {[%clk 0:00:42]}  Nf6 {[%clk 0:00:15]} 28. Ng3 {[%clk 0:00:41]}  h5 {[%clk 0:00:10]} 29. Nc3 {[%clk 0:00:40]}  h4 {[%clk 0:00:09]} 30. Nge4 {[%clk 0:00:40]}  Nxe4 {[%clk 0:00:09]} 31. Nxe4 {[%clk 0:00:38]}  Qe7 {[%clk 0:00:04]} 32. c5 {[%clk 0:00:31]}  f6 {[%clk 0:00:04]} 33. Ra1 {[%clk 0:00:27]}  h3 {[%clk 0:00:03]} 34. g3 {[%clk 0:00:25]}  g5 {[%clk 0:00:03]} 35. b4 {[%clk 0:00:23]}  Bf5 {[%clk 0:00:01]} 36. g4 {[%clk 0:00:17]}  Bxe4 {[%clk 0:00:01]} 37. fxe4 {[%clk 0:00:17]}  Qe6 {[%clk 0:00:02]} 38. Rd7+ {[%clk 0:00:17]}  Re7 {[%clk 0:00:02]} 39. Rxe7+ {[%clk 0:00:16]}  Qxe7 {[%clk 0:00:03]} 40. Rd1 {[%clk 0:00:16]}  Rc7 {[%clk 0:00:04]} 41. Qd6 {[%clk 0:00:16]}  Qf7 {[%clk 0:00:04]} 42. Qd5 {[%clk 0:00:15]}  Re7 {[%clk 0:00:04]} 43. Qxf7+ {[%clk 0:00:14]}  Kxf7 {[%clk 0:00:04]} 44. Kg1 {[%clk 0:00:15]}  Re6 {[%clk 0:00:03]} 45. Kf2 {[%clk 0:00:15]}  Ke7 {[%clk 0:00:01]} 46. Kg3 {[%clk 0:00:15]}  Rc6 {[%clk 0:00:01]} 47. Kxh3 {[%clk 0:00:16]}  Rc8 {[%clk 0:00:02]} 48. Kg3 {[%clk 0:00:16]}  Rh8 {[%clk 0:00:02]} 49. Rd6 {[%clk 0:00:16]}  Rc8 {[%clk 0:00:01]} 50. h3 {[%clk 0:00:16]}  Rc7 {[%clk 0:00:01]} 51. h4 {[%clk 0:00:16]}  gxh4+ {[%clk 0:00:01]} 52. Kxh4 {[%clk 0:00:16]}  Rc8 {[%clk 0:00:02]} 53. Kg3 {[%clk 0:00:16]}  Rg8 {[%clk 0:00:00]} 54. Rb6 {[%clk 0:00:16]} 1-0

[Event "January 2 Late 2024"]
[Site "https://www.chess.com"]
[Date "2024.01.02"]
[Round "2"]
[White "Ambartsumova, Karina"]
[Black "Yoo, Christopher Woojin"]
[Result "0-1"]
[Board "36"]
[TimeControl "180+1"]
[WhiteFideId "4166299"]
[BlackFideId "30909694"]
[WhiteElo "2606"]
[BlackElo "2944"]
[WhiteTeam "RUS"]
[BlackTeam "USA"]
[WhiteClock "0:00:08"]
[BlackClock "0:00:08"]

1. d4 {[%clk 0:03:00]}  Nf6 {[%clk 0:02:59]} 2. c4 {[%clk 0:03:01]}  e6 {[%clk 0:02:58]} 3. Nc3 {[%clk 0:03:01]}  d5 {[%clk 0:02:57]} 4. cxd5 {[%clk 0:03:00]}  exd5 {[%clk 0:02:58]} 5. Bg5 {[%clk 0:03:00]}  Be7 {[%clk 0:02:57]} 6. e3 {[%clk 0:03:00]}  O-O {[%clk 0:02:58]} 7. Bd3 {[%clk 0:03:01]}  Nbd7 {[%clk 0:02:57]} 8. Nf3 {[%clk 0:02:55]}  c6 {[%clk 0:02:51]} 9. O-O {[%clk 0:02:50]}  Ne4 {[%clk 0:02:43]} 10. Bxe7 {[%clk 0:02:45]}  Qxe7 {[%clk 0:02:43]} 11. Qc2 {[%clk 0:02:46]}  Ndf6 {[%clk 0:02:27]} 12. a3 {[%clk 0:02:46]}  Nxc3 {[%clk 0:01:56]} 13. bxc3 {[%clk 0:02:35]}  c5 {[%clk 0:01:55]} 14. c4 {[%clk 0:02:30]}  Bg4 {[%clk 0:01:36]} 15. Ne5 {[%clk 0:02:24]}  cxd4 {[%clk 0:01:36]} 16. Nxg4 {[%clk 0:02:07]}  Nxg4 {[%clk 0:01:35]} 17. Bxh7+ {[%clk 0:02:07]}  Kh8 {[%clk 0:01:35]} 18. Bf5 {[%clk 0:02:07]}  Nh6 {[%clk 0:01:28]} 19. cxd5 {[%clk 0:01:44]}  dxe3 {[%clk 0:01:26]} 20. Rfe1 {[%clk 0:01:39]}  Qe5 {[%clk 0:00:46]} 21. Bh3 {[%clk 0:01:08]}  exf2+ {[%clk 0:00:45]} 22. Qxf2 {[%clk 0:01:09]}  Qxd5 {[%clk 0:00:46]} 23. Rad1 {[%clk 0:01:04]}  Qg5 {[%clk 0:00:46]} 24. Rd7 {[%clk 0:00:55]}  b6 {[%clk 0:00:45]} 25. Red1 {[%clk 0:00:31]}  Rad8 {[%clk 0:00:42]} 26. g3 {[%clk 0:00:31]}  Rxd7 {[%clk 0:00:40]} 27. Rxd7 {[%clk 0:00:32]}  a5 {[%clk 0:00:31]} 28. Rd1 {[%clk 0:00:12]}  b5 {[%clk 0:00:29]} 29. Bf1 {[%clk 0:00:12]}  Ng4 {[%clk 0:00:27]} 30. Qd4 {[%clk 0:00:07]}  Ne3 {[%clk 0:00:15]} 31. Rb1 {[%clk 0:00:07]}  Nxf1 {[%clk 0:00:15]} 32. Rxf1 {[%clk 0:00:07]}  Kg8 {[%clk 0:00:15]} 33. Kg2 {[%clk 0:00:04]}  Re8 {[%clk 0:00:14]} 34. Rf2 {[%clk 0:00:04]}  Qg6 {[%clk 0:00:11]} 35. Qf4 {[%clk 0:00:04]}  Rc8 {[%clk 0:00:09]} 36. Qf5 {[%clk 0:00:01]}  Qxf5 {[%clk 0:00:06]} 37. Rxf5 {[%clk 0:00:01]}  Rb8 {[%clk 0:00:06]} 38. Rf3 {[%clk 0:00:01]}  b4 {[%clk 0:00:07]} 39. axb4 {[%clk 0:00:02]}  axb4 {[%clk 0:00:07]} 40. Rb3 {[%clk 0:00:03]}  f6 {[%clk 0:00:07]} 41. Kf3 {[%clk 0:00:03]}  Kf7 {[%clk 0:00:07]} 42. Ke4 {[%clk 0:00:04]}  Ke6 {[%clk 0:00:08]} 43. h4 {[%clk 0:00:05]}  Kd6 {[%clk 0:00:02]} 44. g4 {[%clk 0:00:04]}  Kc5 {[%clk 0:00:03]} 45. Kf5 {[%clk 0:00:03]}  Kc4 {[%clk 0:00:03]} 46. Rb1 {[%clk 0:00:04]}  b3 {[%clk 0:00:04]} 47. g5 {[%clk 0:00:04]}  fxg5 {[%clk 0:00:04]} 48. hxg5 {[%clk 0:00:05]}  Rb7 {[%clk 0:00:04]} 49. Kg6 {[%clk 0:00:06]}  Kc3 {[%clk 0:00:04]} 50. Rh1 {[%clk 0:00:05]}  b2 {[%clk 0:00:04]} 51. Rh3+ {[%clk 0:00:06]}  Kc2 {[%clk 0:00:05]} 52. Rh2+ {[%clk 0:00:07]}  Kb3 {[%clk 0:00:06]} 53. Rh1 {[%clk 0:00:07]}  Ka2 {[%clk 0:00:06]} 54. Kh7 {[%clk 0:00:06]}  b1=Q+ {[%clk 0:00:06]} 55. Rxb1 {[%clk 0:00:07]}  Kxb1 {[%clk 0:00:07]} 56. g6 {[%clk 0:00:08]}  Kc2 {[%clk 0:00:08]} 57. Kh8 {[%clk 0:00:08]}  Kd3 {[%clk 0:00:08]} 0-1

[Event "January 2 Late 2024"]
[Site "https://www.chess.com"]
[Date "2024.01.02"]
[Round "2"]
[White "Silva, Caio Henrique Angelico"]
[Black "Alekseenko, Kirill"]
[Result "1/2-1/2"]
[Board "38"]
[TimeControl "180+1"]
[WhiteFideId "22777210"]
[BlackFideId "4135539"]
[WhiteElo "2603"]
[BlackElo "2935"]
[WhiteTeam "BRA"]
[BlackTeam "AUT"]
[WhiteClock "0:00:14"]
[BlackClock "0:00:06"]

1. d4 {[%clk 0:03:00]}  d5 {[%clk 0:02:59]} 2. Nf3 {[%clk 0:03:00]}  Nf6 {[%clk 0:02:59]} 3. g3 {[%clk 0:03:00]}  Bf5 {[%clk 0:02:57]} 4. c4 {[%clk 0:02:57]}  e6 {[%clk 0:02:56]} 5. Nc3 {[%clk 0:02:56]}  c6 {[%clk 0:02:56]} 6. Nh4 {[%clk 0:02:56]}  Bg4 {[%clk 0:02:48]} 7. h3 {[%clk 0:02:52]}  Bh5 {[%clk 0:02:48]} 8. g4 {[%clk 0:02:50]}  Nfd7 {[%clk 0:02:47]} 9. Nf3 {[%clk 0:02:38]}  Bg6 {[%clk 0:02:47]} 10. Bg2 {[%clk 0:02:37]}  Bd6 {[%clk 0:02:42]} 11. Bg5 {[%clk 0:02:25]}  Be7 {[%clk 0:02:35]} 12. Bxe7 {[%clk 0:02:23]}  Qxe7 {[%clk 0:02:35]} 13. Qb3 {[%clk 0:02:20]}  Nb6 {[%clk 0:02:14]} 14. cxd5 {[%clk 0:02:12]}  exd5 {[%clk 0:02:12]} 15. Ne5 {[%clk 0:02:11]}  N8d7 {[%clk 0:02:13]} 16. Nxg6 {[%clk 0:02:07]}  hxg6 {[%clk 0:02:13]} 17. O-O {[%clk 0:02:03]}  O-O {[%clk 0:02:12]} 18. Rfe1 {[%clk 0:01:57]}  Rfe8 {[%clk 0:02:10]} 19. e4 {[%clk 0:01:53]}  dxe4 {[%clk 0:02:10]} 20. Rxe4 {[%clk 0:01:48]}  Qf8 {[%clk 0:02:07]} 21. Rxe8 {[%clk 0:01:32]}  Rxe8 {[%clk 0:02:07]} 22. d5 {[%clk 0:01:32]}  Ne5 {[%clk 0:01:53]} 23. dxc6 {[%clk 0:01:30]}  bxc6 {[%clk 0:01:54]} 24. Ne4 {[%clk 0:01:15]}  Nd5 {[%clk 0:01:36]} 25. Rd1 {[%clk 0:01:07]}  Rd8 {[%clk 0:01:28]} 26. Nc3 {[%clk 0:01:03]}  Nf4 {[%clk 0:01:26]} 27. Rxd8 {[%clk 0:00:57]}  Qxd8 {[%clk 0:01:27]} 28. Qd1 {[%clk 0:00:54]}  Qb6 {[%clk 0:01:20]} 29. Qd2 {[%clk 0:00:44]}  Nxh3+ {[%clk 0:01:19]} 30. Kf1 {[%clk 0:00:39]}  Nxf2 {[%clk 0:00:24]} 31. Qxf2 {[%clk 0:00:39]}  Qxf2+ {[%clk 0:00:20]} 32. Kxf2 {[%clk 0:00:40]}  Nxg4+ {[%clk 0:00:21]} 33. Kg3 {[%clk 0:00:36]}  Ne5 {[%clk 0:00:21]} 34. Kf4 {[%clk 0:00:30]}  f6 {[%clk 0:00:22]} 35. Ne4 {[%clk 0:00:26]}  Kf7 {[%clk 0:00:20]} 36. Nc5 {[%clk 0:00:26]}  g5+ {[%clk 0:00:20]} 37. Ke4 {[%clk 0:00:25]}  Ke7 {[%clk 0:00:20]} 38. b4 {[%clk 0:00:25]}  g6 {[%clk 0:00:16]} 39. a4 {[%clk 0:00:24]}  Kd6 {[%clk 0:00:14]} 40. Nb7+ {[%clk 0:00:24]}  Kc7 {[%clk 0:00:15]} 41. Nc5 {[%clk 0:00:25]}  Kd6 {[%clk 0:00:15]} 42. Nb7+ {[%clk 0:00:25]}  Kc7 {[%clk 0:00:15]} 43. Nc5 {[%clk 0:00:26]}  Nf7 {[%clk 0:00:16]} 44. Kd4 {[%clk 0:00:22]}  g4 {[%clk 0:00:15]} 45. Ne6+ {[%clk 0:00:20]}  Kd6 {[%clk 0:00:14]} 46. Nc5 {[%clk 0:00:18]}  f5 {[%clk 0:00:14]} 47. Nb7+ {[%clk 0:00:15]}  Kc7 {[%clk 0:00:14]} 48. Na5 {[%clk 0:00:16]}  f4 {[%clk 0:00:12]} 49. Bxc6 {[%clk 0:00:15]}  f3 {[%clk 0:00:12]} 50. Ke3 {[%clk 0:00:15]}  Ne5 {[%clk 0:00:10]} 51. Be4 {[%clk 0:00:15]}  g5 {[%clk 0:00:10]} 52. Nb3 {[%clk 0:00:15]}  Nc4+ {[%clk 0:00:10]} 53. Kf2 {[%clk 0:00:16]}  Nb2 {[%clk 0:00:09]} 54. Nc5 {[%clk 0:00:14]}  Kd6 {[%clk 0:00:09]} 55. a5 {[%clk 0:00:14]}  Nc4 {[%clk 0:00:04]} 56. a6 {[%clk 0:00:12]}  Ne5 {[%clk 0:00:04]} 57. Nd3 {[%clk 0:00:09]}  Nc4 {[%clk 0:00:03]} 58. Bxf3 {[%clk 0:00:09]}  gxf3 {[%clk 0:00:03]} 59. Kxf3 {[%clk 0:00:09]}  Kc7 {[%clk 0:00:02]} 60. Kg4 {[%clk 0:00:10]}  Kb6 {[%clk 0:00:03]} 61. Nc5 {[%clk 0:00:10]}  Ne3+ {[%clk 0:00:02]} 62. Kxg5 {[%clk 0:00:10]}  Nd5 {[%clk 0:00:03]} 63. Nd3 {[%clk 0:00:10]}  Kxa6 {[%clk 0:00:03]} 64. Kf5 {[%clk 0:00:11]}  Kb5 {[%clk 0:00:04]} 65. Ke5 {[%clk 0:00:11]}  Nxb4 {[%clk 0:00:04]} 66. Nb2 {[%clk 0:00:11]}  a5 {[%clk 0:00:05]} 67. Kd4 {[%clk 0:00:12]}  Nc6+ {[%clk 0:00:04]} 68. Kc3 {[%clk 0:00:12]}  Ne7 {[%clk 0:00:04]} 69. Kb3 {[%clk 0:00:13]}  Nd5 {[%clk 0:00:05]} 70. Na4 {[%clk 0:00:12]}  Nb4 {[%clk 0:00:04]} 71. Nc3+ {[%clk 0:00:13]}  Kb6 {[%clk 0:00:05]} 72. Ka4 {[%clk 0:00:13]}  Na6 {[%clk 0:00:06]} 73. Nd5+ {[%clk 0:00:14]}  Kc5 {[%clk 0:00:06]} 74. Kxa5 {[%clk 0:00:14]} 1/2-1/2

[Event "January 2 Late 2024"]
[Site "https://www.chess.com"]
[Date "2024.01.02"]
[Round "2"]
[White "Tari, Aryan"]
[Black "Gubajdullin, Alexei"]
[Result "0-1"]
[Board "41"]
[TimeControl "180+1"]
[WhiteFideId "1510045"]
[BlackFideId "4141202"]
[WhiteElo "2920"]
[BlackElo "2590"]
[WhiteTeam "NOR"]
[BlackTeam "RUS"]
[WhiteClock "0:00:00"]
[BlackClock "0:00:39"]

1. c4 {[%clk 0:03:00]}  Nf6 {[%clk 0:02:57]} 2. Nc3 {[%clk 0:03:00]}  g6 {[%clk 0:02:56]} 3. g3 {[%clk 0:03:00]}  Bg7 {[%clk 0:02:55]} 4. Bg2 {[%clk 0:03:00]}  O-O {[%clk 0:02:55]} 5. d4 {[%clk 0:03:01]}  d6 {[%clk 0:02:55]} 6. Nf3 {[%clk 0:03:01]}  Nbd7 {[%clk 0:02:56]} 7. O-O {[%clk 0:03:00]}  e5 {[%clk 0:02:56]} 8. b3 {[%clk 0:03:01]}  c6 {[%clk 0:02:56]} 9. e4 {[%clk 0:03:00]}  Re8 {[%clk 0:02:55]} 10. Re1 {[%clk 0:02:53]}  a5 {[%clk 0:02:54]} 11. dxe5 {[%clk 0:02:20]}  dxe5 {[%clk 0:02:46]} 12. Ba3 {[%clk 0:02:18]}  Bf8 {[%clk 0:02:33]} 13. Bxf8 {[%clk 0:02:16]}  Kxf8 {[%clk 0:02:32]} 14. Qd2 {[%clk 0:02:07]}  Kg7 {[%clk 0:02:30]} 15. Rad1 {[%clk 0:02:06]}  Qe7 {[%clk 0:02:30]} 16. Na4 {[%clk 0:01:50]}  Nc5 {[%clk 0:02:14]} 17. Nb6 {[%clk 0:01:50]}  Ra6 {[%clk 0:02:14]} 18. Nxc8 {[%clk 0:01:48]}  Rxc8 {[%clk 0:02:13]} 19. Qb2 {[%clk 0:01:42]}  Re8 {[%clk 0:02:12]} 20. Nh4 {[%clk 0:01:34]}  Nfd7 {[%clk 0:02:01]} 21. f4 {[%clk 0:01:28]}  Ne6 {[%clk 0:01:50]} 22. Nf3 {[%clk 0:01:15]}  f6 {[%clk 0:01:39]} 23. Bh3 {[%clk 0:01:10]}  exf4 {[%clk 0:01:30]} 24. gxf4 {[%clk 0:01:09]}  Ndc5 {[%clk 0:01:26]} 25. f5 {[%clk 0:01:07]}  Nf4 {[%clk 0:01:25]} 26. Bf1 {[%clk 0:00:59]}  Nxe4 {[%clk 0:01:25]} 27. Qc1 {[%clk 0:00:39]}  Qc5+ {[%clk 0:01:22]} 28. Rd4 {[%clk 0:00:27]}  Ng5 {[%clk 0:01:17]} 29. Qxf4 {[%clk 0:00:06]}  Nxf3+ {[%clk 0:01:00]} 30. Kh1 {[%clk 0:00:05]}  Nxe1 {[%clk 0:00:42]} 31. fxg6 {[%clk 0:00:03]}  hxg6 {[%clk 0:00:38]} 32. Rd7+ {[%clk 0:00:00]}  Re7 {[%clk 0:00:39]} 0-1

[Event "January 2 Late 2024"]
[Site "https://www.chess.com"]
[Date "2024.01.02"]
[Round "2"]
[White "Zomorrodian, Eilia"]
[Black "Zhigalko, Sergei"]
[Result "0-1"]
[Board "42"]
[TimeControl "180+1"]
[WhiteFideId "12551805"]
[BlackFideId "13502956"]
[WhiteElo "2588"]
[BlackElo "2918"]
[WhiteTeam "CAN"]
[BlackTeam "BLR"]
[WhiteClock "0:00:30"]
[BlackClock "0:00:07"]

1. e4 {[%clk 0:03:00]}  c5 {[%clk 0:03:00]} 2. Nf3 {[%clk 0:03:00]}  Nc6 {[%clk 0:03:00]} 3. Bb5 {[%clk 0:03:01]}  Nf6 {[%clk 0:03:00]} 4. Bxc6 {[%clk 0:03:01]}  dxc6 {[%clk 0:03:01]} 5. e5 {[%clk 0:03:01]}  Nd5 {[%clk 0:03:01]} 6. O-O {[%clk 0:03:02]}  h6 {[%clk 0:02:59]} 7. h3 {[%clk 0:03:02]}  Bf5 {[%clk 0:02:54]} 8. d3 {[%clk 0:03:02]}  g5 {[%clk 0:02:52]} 9. Re1 {[%clk 0:02:59]}  Bg7 {[%clk 0:02:52]} 10. Nbd2 {[%clk 0:02:58]}  Nc7 {[%clk 0:02:51]} 11. a4 {[%clk 0:02:55]}  Ne6 {[%clk 0:02:51]} 12. Ne4 {[%clk 0:02:56]}  c4 {[%clk 0:02:48]} 13. Ng3 {[%clk 0:02:50]}  Bg6 {[%clk 0:02:47]} 14. d4 {[%clk 0:02:46]}  Qd5 {[%clk 0:02:43]} 15. c3 {[%clk 0:02:37]}  Rd8 {[%clk 0:02:35]} 16. Nf1 {[%clk 0:02:24]}  Qd7 {[%clk 0:02:15]} 17. Ne3 {[%clk 0:02:22]}  b5 {[%clk 0:02:13]} 18. axb5 {[%clk 0:02:13]}  cxb5 {[%clk 0:02:11]} 19. b3 {[%clk 0:02:14]}  cxb3 {[%clk 0:02:03]} 20. Qxb3 {[%clk 0:02:14]}  O-O {[%clk 0:02:03]} 21. Ba3 {[%clk 0:02:09]}  a5 {[%clk 0:01:55]} 22. Rad1 {[%clk 0:01:21]}  Nf4 {[%clk 0:01:30]} 23. c4 {[%clk 0:01:17]}  b4 {[%clk 0:01:25]} 24. Bb2 {[%clk 0:01:14]}  Rb8 {[%clk 0:01:21]} 25. d5 {[%clk 0:01:02]}  a4 {[%clk 0:01:19]} 26. Qa2 {[%clk 0:01:03]}  a3 {[%clk 0:01:12]} 27. e6 {[%clk 0:00:59]}  Qa4 {[%clk 0:00:56]} 28. Bxg7 {[%clk 0:01:00]}  Kxg7 {[%clk 0:00:56]} 29. Qa1+ {[%clk 0:00:49]}  f6 {[%clk 0:00:23]} 30. d6 {[%clk 0:00:48]}  b3 {[%clk 0:00:13]} 31. dxe7 {[%clk 0:00:47]}  Rfe8 {[%clk 0:00:13]} 32. Qc3 {[%clk 0:00:38]}  Qb4 {[%clk 0:00:11]} 33. Qd4 {[%clk 0:00:37]}  b2 {[%clk 0:00:07]} 34. Ng4 {[%clk 0:00:37]}  Qxe7 {[%clk 0:00:07]} 35. Qc3 {[%clk 0:00:32]}  b1=Q {[%clk 0:00:06]} 36. Rxb1 {[%clk 0:00:32]}  Rxb1 {[%clk 0:00:07]} 37. Rxb1 {[%clk 0:00:30]}  Ne2+ {[%clk 0:00:07]} 0-1